fUSD/lending_fUSD_20240620
["ID","MTS","AMOUNT","RATE_DAILY","PERIOD"]
[329930048,1718842243822,-227.25883744,0.00013698,2]
[329930049,1718842243832,-202.381605,0.00013698,2]
[329930050,1718842243841,-500.0,0.00013698,2]
[329930051,1718842243850,-500.0,0.00013698,2]
[329930052,1718842243860,-500.0,0.00013698,2]
[329930053,1718842243870,-500.0,0.00013698,2]
[329930054,1718842243879,-500.0,0.00013698,2]
[329930055,1718842243889,-500.0,0.00013698,2]
[329930056,1718842243899,-1640.26,0.00013698,2]
[329930057,1718842243911,-500.0,0.00013698,2]
[329930058,1718842243920,-151.0,0.00013698,2]
[329930059,1718842243930,-504.52,0.00013698,2]
[329930060,1718842244201,-500.0,0.00013698,2]
[329930061,1718842244211,-500.0,0.00013698,2]
[329930062,1718842244222,-657.93,0.00013698,2]
[329930063,1718842244232,-545.99,0.00013698,2]
[329930064,1718842244243,-500.0,0.00013698,2]
[329930065,1718842244257,-619.72,0.00013698,2]
[329930066,1718842244270,-500.0,0.00013698,2]
[329930067,1718842244280,-500.0,0.00013698,2]
[329930068,1718842244289,-500.0,0.00013698,2]
[329930069,1718842244301,-500.0,0.00013698,2]
[329930070,1718842244311,-565.86602596,0.00013698,2]
[329930071,1718842244321,-500.53001508,0.00013698,2]
[329930072,1718842244330,-500.0,0.00013698,2]
[329930073,1718842244342,-500.0,0.00013698,2]
[329930074,1718842244352,-822.0,0.00013698,2]
[329930075,1718842244362,-500.0,0.00013698,2]
[329930076,1718842244371,-669.88,0.00013698,2]
[329930077,1718842244381,-500.0,0.00013698,2]
[329930078,1718842244390,-500.0,0.00013698,2]
[329930079,1718842244399,-500.0,0.00013698,2]
[329930080,1718842244411,-500.0,0.00013698,2]
[329930081,1718842244420,-902.87,0.00013698,2]
[329930082,1718842244430,-500.0,0.00013698,2]
[329930083,1718842244439,-500.0,0.00013698,2]
[329930084,1718842244449,-558.17,0.00013698,2]
[329930085,1718842244458,-500.0,0.00013698,2]
[329930086,1718842244467,-151.0,0.00013698,2]
[329930087,1718842244476,-151.0,0.00013698,2]
[329930088,1718842244486,-695.71,0.00013698,2]
[329930089,1718842244495,-1078.61,0.00013698,2]
[329930090,1718842244504,-151.0,0.00013698,2]
[329930091,1718842244514,-151.0,0.00013698,2]
[329930092,1718842244523,-151.0,0.00013698,2]
[329930093,1718842244533,-151.0,0.00013698,2]
[329930094,1718842244542,-151.0,0.00013698,2]
[329930095,1718842244551,-500.0,0.00013698,2]
[329930096,1718842244560,-151.0,0.00013698,2]
[329930097,1718842244570,-151.0,0.00013698,2]
[329930098,1718842244579,-151.0,0.00013698,2]
[329930099,1718842244588,-160.999552,0.00013698,2]
[329930100,1718842244598,-508.6951051,0.00013698,2]
[329930101,1718842244607,-500.0,0.00013698,2]
[329930102,1718842244617,-500.0,0.00013698,2]
[329930103,1718842244626,-676.24,0.00013698,2]
[329930104,1718842244636,-1383.59,0.00013698,2]
[329930105,1718842244645,-500.0,0.00013698,2]
[329930106,1718842244656,-500.0,0.00013698,2]
[329930107,1718842244665,-500.0,0.00013698,2]
[329930108,1718842244674,-626.54,0.00013698,2]
[329930109,1718842244683,-920.26,0.00013698,2]
[329930110,1718842244692,-500.0,0.00013698,2]
[329930111,1718842244701,-537.33721586,0.00013698,2]
[329930112,1718842244711,-500.0,0.00013698,2]
[329930113,1718842244720,-247.925035,0.00013698,2]
[329930114,1718842244730,-247.925035,0.00013698,2]
[329930115,1718842244739,-247.925035,0.00013698,2]
[329930116,1718842244748,-247.925035,0.00013698,2]
[329930117,1718842244758,-247.925035,0.00013698,2]
[329930118,1718842244768,-500.0,0.00013698,2]
[329930119,1718842244777,-247.925035,0.00013698,2]
[329930120,1718842244786,-247.925035,0.00013698,2]
[329930121,1718842244796,-522.19,0.00013698,2]
[329930122,1718842244806,-500.0,0.00013698,2]
[329930123,1718842244816,-247.925035,0.00013698,2]
[329930124,1718842244826,-500.0,0.00013698,2]
[329930125,1718842244836,-247.925035,0.00013698,2]
[329930126,1718842244845,-247.925035,0.00013698,2]
[329930127,1718842244854,-500.0,0.00013698,2]
[329930128,1718842244863,-500.0,0.00013698,2]
[329930129,1718842244873,-247.925035,0.00013698,2]
[329930130,1718842244883,-247.925035,0.00013698,2]
[329930131,1718842244893,-151.0,0.00013698,2]
[329930132,1718842244903,-247.925035,0.00013698,2]
[329930133,1718842244915,-151.0,0.00013698,2]
[329930134,1718842244925,-247.925035,0.00013698,2]
[329930135,1718842244934,-734.52,0.00013698,2]
[329930136,1718842244943,-151.0,0.00013698,2]
[329930137,1718842244952,-247.925035,0.00013698,2]
[329930138,1718842244961,-151.0,0.00013698,2]
[329930139,1718842244970,-247.925035,0.00013698,2]
[329930140,1718842244981,-500.0,0.00013698,2]
[329930141,1718842244991,-151.0,0.00013698,2]
[329930142,1718842245001,-247.925035,0.00013698,2]
[329930143,1718842245012,-589.45575791,0.00013698,2]
[329930144,1718842245022,-247.925039,0.00013698,2]
[329930145,1718842245033,-500.0,0.00013698,2]
[329930146,1718842245044,-728.06,0.00013698,2]
[329930147,1718842245054,-508.5658746,0.00013698,2]
[329930148,1718842245065,-500.0,0.00013698,2]
[329930149,1718842245075,-500.0,0.00013698,2]
[329930150,1718842245084,-500.0,0.00013698,2]
[329930151,1718842245094,-588.31,0.00013698,2]
[329930152,1718842245105,-500.0,0.00013698,2]
[329930153,1718842245114,-869.51,0.00013698,2]
[329930154,1718842245124,-500.0,0.00013698,2]
[329930155,1718842245134,-500.0,0.00013698,2]
[329930156,1718842245143,-307.18512972,0.00013698,2]
[329930157,1718842245154,-500.0,0.00013698,2]
[329930158,1718842245164,-501.09620519,0.00013698,2]
[329930159,1718842245173,-829.44,0.00013698,2]
[329930160,1718842245182,-500.0,0.00013698,2]
[329930161,1718842245191,-1177.97,0.00013698,2]
[329930162,1718842245201,-500.0,0.00013698,2]
[329930163,1718842245211,-528.2,0.00013698,2]
[329930164,1718842245221,-950.31,0.00013698,2]
[329930165,1718842245231,-1724.6,0.00013698,2]
[329930166,1718842245242,-500.0,0.00013698,2]
[329930167,1718842245253,-500.0,0.00013698,2]
[329930168,1718842245264,-500.0,0.00013698,2]
[329930169,1718842245274,-500.0,0.00013698,2]
[329930170,1718842245284,-500.0,0.00013698,2]
[329930171,1718842245294,-1660.84,0.00013698,2]
[329930172,1718842245303,-500.0,0.00013698,2]
[329930173,1718842245313,-500.0,0.00013698,2]
[329930174,1718842245323,-500.0,0.00013698,2]
[329930175,1718842245339,-1296.21,0.00013698,2]
[329930176,1718842245349,-500.0,0.00013698,2]
[329930177,1718842245359,-502.75656585,0.00013698,2]
[329930178,1718842245369,-1004.65,0.00013698,2]
[329930179,1718842245379,-500.0,0.00013698,2]
[329930181,1718842245389,-1481.45,0.00013698,2]
[329930183,1718842245398,-500.0,0.00013698,2]
[329930184,1718842245410,-724.3,0.00013698,2]
[329930185,1718842245420,-500.0,0.00013698,2]
[329930186,1718842245429,-500.0,0.00013698,2]
[329930187,1718842245439,-500.0,0.00013698,2]
[329930189,1718842245450,-500.0,0.00013698,2]
[329930190,1718842245460,-500.0,0.00013698,2]
[329930191,1718842245470,-1131.72,0.00013698,2]
[329930192,1718842245480,-500.0,0.00013698,2]
[329930193,1718842245490,-1205.84,0.00013698,2]
[329930194,1718842245502,-500.0,0.00013698,2]
[329930195,1718842245511,-500.0,0.00013698,2]
[329930196,1718842245521,-500.0,0.00013698,2]
[329930197,1718842245531,-151.0,0.00013698,2]
[329930198,1718842245540,-151.0,0.00013698,2]
[329930199,1718842245550,-500.0,0.00013698,2]
[329930200,1718842245559,-151.0,0.00013698,2]
[329930201,1718842245570,-500.0,0.00013698,2]
[329930202,1718842245579,-236.431875,0.00013698,2]
[329930203,1718842245588,-500.0,0.00013698,2]
[329930204,1718842245598,-500.0,0.00013698,2]
[329930205,1718842245608,-151.0,0.00013698,2]
[329930206,1718842245617,-1218.27,0.00013698,2]
[329930207,1718842245627,-151.0,0.00013698,2]
[329930208,1718842245637,-151.0,0.00013698,2]
[329930209,1718842245647,-151.0,0.00013698,2]
[329930210,1718842245660,-828.18,0.00013698,2]
[329930211,1718842245670,-301.254228,0.00013698,2]
[329930212,1718842245681,-1016.48471838,0.00013698,2]
[329930213,1718842245691,-500.0,0.00013698,2]
[329930214,1718842245702,-1407.82,0.00013698,2]
[329930215,1718842245711,-672.47,0.00013698,2]
[329930216,1718842245722,-500.0,0.00013698,2]
[329930217,1718842245733,-500.0,0.00013698,2]
[329930218,1718842245742,-500.0,0.00013698,2]
[329930219,1718842245752,-500.0,0.00013698,2]
[329930220,1718842245761,-500.0,0.00013698,2]
[329930221,1718842245771,-500.0,0.00013698,2]
[329930222,1718842245780,-500.0,0.00013698,2]
[329930223,1718842245790,-636.71,0.00013698,2]
[329930224,1718842245800,-500.0,0.00013698,2]
[329930225,1718842245810,-500.0,0.00013698,2]
[329930226,1718842245820,-151.0,0.00013698,2]
[329930227,1718842245830,-151.0,0.00013698,2]
[329930228,1718842245840,-151.0,0.00013698,2]
[329930229,1718842245850,-151.0,0.00013698,2]
[329930230,1718842245861,-172.563341,0.00013698,2]
[329930231,1718842245872,-556.62,0.00013698,2]
[329930232,1718842245882,-746.84,0.00013698,2]
[329930233,1718842245893,-500.0,0.00013698,2]
[329930234,1718842245905,-151.0,0.00013698,2]
[329930235,1718842245914,-500.0,0.00013698,2]
[329930236,1718842245924,-151.0,0.00013698,2]
[329930237,1718842245934,-151.0,0.00013698,2]
[329930238,1718842245943,-151.0,0.00013698,2]
[329930239,1718842245952,-151.0,0.00013698,2]
[329930240,1718842245962,-151.0,0.00013698,2]
[329930241,1718842245971,-151.0,0.00013698,2]
[329930242,1718842245981,-151.0,0.00013698,2]
[329930243,1718842245990,-500.0,0.00013698,2]
[329930244,1718842245999,-151.915711,0.00013698,2]
[329930245,1718842246011,-500.0,0.00013698,2]
[329930246,1718842246020,-500.0,0.00013698,2]
[329930247,1718842246029,-500.0,0.00013698,2]
[329930248,1718842246038,-151.0,0.00013698,2]
[329930249,1718842246048,-151.915711,0.00013698,2]
[329930250,1718842246057,-500.0,0.00013698,2]
[329930251,1718842246066,-607.79,0.00013698,2]
[329930252,1718842246075,-151.0,0.00013698,2]
[329930253,1718842246085,-500.0,0.00013698,2]
[329930254,1718842246094,-1136.53,0.00013698,2]
[329930255,1718842246103,-500.0,0.00013698,2]
[329930256,1718842246112,-500.0,0.00013698,2]
[329930258,1718842246121,-151.915711,0.00013698,2]
[329930260,1718842246131,-500.0,0.00013698,2]
[329930261,1718842246140,-151.915711,0.00013698,2]
[329930262,1718842246149,-151.915711,0.00013698,2]
[329930263,1718842246160,-500.0,0.00013698,2]
[329930264,1718842246169,-151.915711,0.00013698,2]
[329930265,1718842246178,-151.0,0.00013698,2]
[329930266,1718842246187,-151.915711,0.00013698,2]
[329930267,1718842246197,-1859.57,0.00013698,2]
[329930268,1718842246206,-151.915711,0.00013698,2]
[329930269,1718842246215,-151.0,0.00013698,2]
[329930270,1718842246225,-229.67127,0.00013698,2]
[329930271,1718842246234,-500.0,0.00013698,2]
[329930272,1718842246244,-500.0,0.00013698,2]
[329930273,1718842246257,-151.915711,0.00013698,2]
[329930274,1718842246266,-151.915711,0.00013698,2]
[329930275,1718842246276,-151.915711,0.00013698,2]
[329930276,1718842246286,-151.915711,0.00013698,2]
[329930277,1718842246296,-151.915711,0.00013698,2]
[329930278,1718842246305,-151.915711,0.00013698,2]
[329930279,1718842246314,-151.915711,0.00013698,2]
[329930280,1718842246324,-151.915713,0.00013698,2]
[329930281,1718842246336,-627.32,0.00013698,2]
[329930282,1718842246347,-500.0,0.00013698,2]
[329930283,1718842246359,-830.85,0.00013698,2]
[329930284,1718842246369,-500.0,0.00013698,2]
[329930285,1718842246378,-500.0,0.00013698,2]
[329930286,1718842246388,-500.0,0.00013698,2]
[329930287,1718842246397,-1257.79,0.00013698,2]
[329930288,1718842246408,-500.0,0.00013698,2]
[329930289,1718842246419,-194.742665,0.00013698,2]
[329930290,1718842246428,-194.742665,0.00013698,2]
[329930291,1718842246438,-194.742665,0.00013698,2]
[329930292,1718842246448,-500.0,0.00013698,2]
[329930293,1718842246458,-194.742665,0.00013698,2]
[329930294,1718842246468,-500.0,0.00013698,2]
[329930295,1718842246478,-194.742665,0.00013698,2]
[329930296,1718842246488,-1058.54,0.00013698,2]
[329930297,1718842246497,-194.742665,0.00013698,2]
[329930298,1718842246507,-194.742665,0.00013698,2]
[329930299,1718842246516,-194.742665,0.00013698,2]
[329930300,1718842246526,-194.742665,0.00013698,2]
[329930301,1718842246536,-194.742665,0.00013698,2]
[329930302,1718842246546,-194.742665,0.00013698,2]
[329930303,1718842246555,-194.742665,0.00013698,2]
[329930304,1718842246640,-194.742665,0.00013698,2]
[329930305,1718842246651,-194.742665,0.00013698,2]
[329930306,1718842246661,-194.742665,0.00013698,2]
[329930307,1718842246670,-194.742673,0.00013698,2]
[329930308,1718842246679,-1456.75,0.00013698,2]
[329930309,1718842246689,-1607.41,0.00013698,2]
[329930310,1718842246699,-500.0,0.00013698,2]
[329930311,1718842246709,-500.0,0.00013698,2]
[329930312,1718842246719,-500.0,0.00013698,2]
[329930313,1718842246728,-1134.46,0.00013698,2]
[329930314,1718842246737,-500.0,0.00013698,2]
[329930315,1718842246746,-500.0,0.00013698,2]
[329930316,1718842246756,-199.839856,0.00013698,2]
[329930317,1718842246765,-1487.93,0.00013698,2]
[329930318,1718842246774,-500.0,0.00013698,2]
[329930319,1718842246783,-886.95,0.00013698,2]
[329930320,1718842246792,-500.0,0.00013698,2]
[329930321,1718842246801,-1000.0,0.00013698,2]
[329930322,1718842246811,-500.0,0.00013698,2]
[329930323,1718842246820,-1170.93,0.00013698,2]
[329930324,1718842246829,-1669.27,0.00013698,2]
[329930325,1718842246838,-1110.48,0.00013698,2]
[329930326,1718842246848,-500.0,0.00013698,2]
[329930327,1718842246857,-598.78,0.00013698,2]
[329930328,1718842246867,-754.68,0.00013698,2]
[329930329,1718842246875,-151.0,0.00013698,2]
[329930330,1718842246885,-151.0,0.00013698,2]
[329930331,1718842246894,-1719.04,0.00013698,2]
[329930332,1718842246904,-151.0,0.00013698,2]
[329930333,1718842246912,-710.42,0.00013698,2]
[329930334,1718842246922,-151.0,0.00013698,2]
[329930335,1718842246931,-151.0,0.00013698,2]
[329930336,1718842246940,-1070.31,0.00013698,2]
[329930337,1718842246949,-151.0,0.00013698,2]
[329930338,1718842246958,-746.95,0.00013698,2]
[329930339,1718842246967,-151.0,0.00013698,2]
[329930340,1718842246976,-553.34707229,0.00013698,2]
[329930341,1718842246985,-151.0,0.00013698,2]
[329930342,1718842246995,-151.0,0.00013698,2]
[329930343,1718842247005,-151.0,0.00013698,2]
[329930344,1718842247014,-152.964877,0.00013698,2]
[329930345,1718842247023,-500.0,0.00013698,2]
[329930346,1718842247032,-500.0,0.00013698,2]
[329930347,1718842247041,-500.0,0.00013698,2]
[329930348,1718842247050,-640.71,0.00013698,2]
[329930349,1718842247059,-401.11201718,0.00013698,2]
[329930350,1718842247068,-500.0,0.00013698,2]
[329930351,1718842247077,-736.09,0.00013698,2]
[329930352,1718842247086,-528.38,0.00013698,2]
[329930353,1718842247095,-500.0,0.00013698,2]
[329930354,1718842247104,-1528.36,0.00013698,2]
[329930355,1718842247115,-500.0,0.00013698,2]
[329930356,1718842247124,-152.96466,0.00013698,2]
[329930357,1718842247134,-739.84,0.00013698,2]
[329930358,1718842247146,-500.0,0.00013698,2]
[329930359,1718842247156,-500.0,0.00013698,2]
[329930360,1718842247165,-500.0,0.00013698,2]
[329930361,1718842247175,-500.0,0.00013698,2]
[329930362,1718842247185,-500.0,0.00013698,2]
[329930363,1718842247194,-500.0,0.00013698,2]
[329930364,1718842247203,-500.0,0.00013698,2]
[329930365,1718842247212,-552.86640443,0.00013698,2]
[329930366,1718842247221,-500.0,0.00013698,2]
[329930367,1718842247230,-500.0,0.00013698,2]
[329930368,1718842247241,-500.0,0.00013698,2]
[329930369,1718842247251,-500.0,0.00013698,2]
[329930370,1718842247261,-1208.1,0.00013698,2]
[329930371,1718842247270,-500.0,0.00013698,2]
[329930372,1718842247279,-151.0,0.00013698,2]
[329930373,1718842247288,-1235.36,0.00013698,2]
[329930374,1718842247297,-151.0,0.00013698,2]
[329930375,1718842247306,-560.81,0.00013698,2]
[329930376,1718842247315,-899.94,0.00013698,2]
[329930377,1718842247324,-1139.07,0.00013698,2]
[329930378,1718842247333,-966.11,0.00013698,2]
[329930379,1718842247343,-500.0,0.00013698,2]
[329930380,1718842247352,-500.0,0.00013698,2]
[329930381,1718842247361,-500.0,0.00013698,2]
[329930382,1718842247370,-500.0,0.00013698,2]
[329930383,1718842247379,-807.9,0.00013698,2]
[329930384,1718842247389,-513.5,0.00013698,2]
[329930385,1718842247398,-500.0,0.00013698,2]
[329930386,1718842247409,-663.74,0.00013698,2]
[329930387,1718842247418,-500.0,0.00013698,2]
[329930388,1718842247427,-917.3,0.00013698,2]
[329930389,1718842247436,-500.0,0.00013698,2]
[329930390,1718842247445,-1292.09,0.00013698,2]
[329930391,1718842247455,-612.95,0.00013698,2]
[329930392,1718842247465,-1090.4,0.00013698,2]
[329930393,1718842247479,-500.0,0.00013698,2]
[329930394,1718842247489,-500.0,0.00013698,2]
[329930395,1718842247498,-500.0,0.00013698,2]
[329930396,1718842247507,-500.0,0.00013698,2]
[329930397,1718842247517,-151.0,0.00013698,2]
[329930398,1718842247527,-515.19,0.00013698,2]
[329930399,1718842247536,-151.0,0.00013698,2]
[329930400,1718842247545,-151.0,0.00013698,2]
[329930401,1718842247555,-151.0,0.00013698,2]
[329930402,1718842247564,-151.0,0.00013698,2]
[329930403,1718842247574,-500.0,0.00013698,2]
[329930404,1718842247583,-151.0,0.00013698,2]
[329930405,1718842247592,-151.0,0.00013698,2]
[329930406,1718842247602,-500.0,0.00013698,2]
[329930407,1718842247612,-1125.03,0.00013698,2]
[329930408,1718842247621,-1671.79,0.00013698,2]
[329930409,1718842247630,-858.94,0.00013698,2]
[329930410,1718842247639,-697.36,0.00013698,2]
[329930411,1718842247649,-567.36,0.00013698,2]
[329930412,1718842247660,-500.0,0.00013698,2]
[329930413,1718842247669,-869.48,0.00013698,2]
[329930414,1718842247679,-500.0,0.00013698,2]
[329930415,1718842247688,-500.0,0.00013698,2]
[329930416,1718842247697,-1062.92,0.00013698,2]
[329930417,1718842247706,-531.99,0.00013698,2]
[329930418,1718842247715,-500.0,0.00013698,2]
[329930419,1718842247725,-795.11,0.00013698,2]
[329930420,1718842247734,-1252.21,0.00013698,2]
[329930421,1718842247744,-500.0,0.00013698,2]
[329930422,1718842247753,-566.45,0.00013698,2]
[329930423,1718842247762,-1387.1,0.00013698,2]
[329930424,1718842247771,-500.0,0.00013698,2]
[329930425,1718842247781,-500.0,0.00013698,2]
[329930426,1718842247790,-1342.38,0.00013698,2]
[329930427,1718842247799,-500.0,0.00013698,2]
[329930428,1718842247809,-980.75,0.00013698,2]
[329930429,1718842247819,-1334.3,0.00013698,2]
[329930430,1718842247828,-819.73,0.00013698,2]
[329930431,1718842247837,-500.0,0.00013698,2]
[329930432,1718842247846,-500.0,0.00013698,2]
[329930433,1718842247856,-201.023544,0.00013698,2]
[329930434,1718842247865,-201.023544,0.00013698,2]
[329930435,1718842247875,-201.023544,0.00013698,2]
[329930436,1718842247884,-201.023544,0.00013698,2]
[329930437,1718842247893,-201.023544,0.00013698,2]
[329930438,1718842247904,-523.87,0.00013698,2]
[329930439,1718842247914,-201.023544,0.00013698,2]
[329930440,1718842247924,-500.0,0.00013698,2]
[329930441,1718842247933,-201.023544,0.00013698,2]
[329930442,1718842247942,-201.023544,0.00013698,2]
[329930443,1718842247950,-690.1,0.00013698,2]
[329930444,1718842247960,-201.023544,0.00013698,2]
[329930445,1718842247969,-201.023544,0.00013698,2]
[329930446,1718842247978,-201.023544,0.00013698,2]
[329930447,1718842247988,-201.023544,0.00013698,2]
[329930448,1718842247997,-904.72,0.00013698,2]
[329930449,1718842248007,-500.0,0.00013698,2]
[329930450,1718842248016,-201.023544,0.00013698,2]
[329930451,1718842248026,-500.0,0.00013698,2]
[329930452,1718842248035,-201.023544,0.00013698,2]
[329930453,1718842248044,-201.023544,0.00013698,2]
[329930454,1718842248054,-201.023546,0.00013698,2]
[329930455,1718842248063,-500.0,0.00013698,2]
[329930456,1718842248072,-2768.07,0.00013698,2]
[329930457,1718842248081,-556.86,0.00013698,2]
[329930458,1718842248090,-1580.8,0.00013698,2]
[329930459,1718842248099,-500.0,0.00013698,2]
[329930460,1718842248109,-500.0,0.00013698,2]
[329930461,1718842248118,-1462.51,0.00013698,2]
[329930462,1718842248127,-1358.73,0.00013698,2]
[329930463,1718842248137,-1256.56,0.00013698,2]
[329930464,1718842248146,-500.0,0.00013698,2]
[329930465,1718842248157,-500.0,0.00013698,2]
[329930466,1718842248166,-855.73,0.00013698,2]
[329930467,1718842248176,-626.84,0.00013698,2]
[329930468,1718842248186,-500.0,0.00013698,2]
[329930469,1718842248195,-649.82,0.00013698,2]
[329930470,1718842248205,-642.39,0.00013698,2]
[329930471,1718842248214,-311.481253,0.00013698,2]
[329930472,1718842248223,-500.0,0.00013698,2]
[329930473,1718842248233,-311.481253,0.00013698,2]
[329930474,1718842248246,-1041.83,0.00013698,2]
[329930475,1718842248257,-311.481253,0.00013698,2]
[329930476,1718842248266,-311.481253,0.00013698,2]
[329930477,1718842248276,-530.62,0.00013698,2]
[329930478,1718842248285,-311.481253,0.00013698,2]
[329930479,1718842248294,-500.0,0.00013698,2]
[329930480,1718842248304,-311.481253,0.00013698,2]
[329930481,1718842248313,-311.481253,0.00013698,2]
[329930482,1718842248322,-500.0,0.00013698,2]
[329930483,1718842248332,-311.481253,0.00013698,2]
[329930484,1718842248341,-500.0,0.00013698,2]
[329930485,1718842248351,-311.481253,0.00013698,2]
[329930486,1718842248360,-311.481253,0.00013698,2]
[329930487,1718842248370,-731.49,0.00013698,2]
[329930488,1718842248379,-311.481253,0.00013698,2]
[329930489,1718842248389,-311.481253,0.00013698,2]
[329930490,1718842248398,-151.0,0.00013698,2]
[329930491,1718842248412,-311.481253,0.00013698,2]
[329930492,1718842248422,-311.481253,0.00013698,2]
[329930493,1718842248432,-311.481253,0.00013698,2]
[329930494,1718842248442,-311.481255,0.00013698,2]
[329930495,1718842248451,-500.0,0.00013698,2]
[329930496,1718842248460,-151.0,0.00013698,2]
[329930497,1718842248470,-151.0,0.00013698,2]
[329930498,1718842248479,-191.67005,0.00013698,2]
[329930499,1718842248489,-1233.52,0.00013698,2]
[329930500,1718842248498,-326.09,0.00013698,2]
[329930501,1718842248508,-622.19,0.00013698,2]
[329930502,1718842248517,-500.0,0.00013698,2]
[329930503,1718842248527,-891.73,0.00013698,2]
[329930504,1718842248536,-500.0,0.00013698,2]
[329930505,1718842248545,-789.15,0.00013698,2]
[329930506,1718842248557,-500.0,0.00013698,2]
[329930507,1718842248566,-1203.99,0.00013698,2]
[329930508,1718842248575,-238.705976,0.00013698,2]
[329930509,1718842248585,-238.705976,0.00013698,2]
[329930510,1718842248594,-238.705976,0.00013698,2]
[329930511,1718842248604,-238.705976,0.00013698,2]
[329930512,1718842248613,-238.705976,0.00013698,2]
[329930513,1718842248623,-238.705972,0.00013698,2]
[329930514,1718842248632,-771.37,0.00013698,2]
[329930515,1718842248641,-684.7,0.00013698,2]
[329930516,1718842248650,-500.0,0.00013698,2]
[329930517,1718842248663,-541.0,0.00013698,2]
[329930518,1718842248673,-151.0,0.00013698,2]
[329930519,1718842248682,-592.57334493,0.00013698,2]
[329930520,1718842248691,-245.637398,0.00013698,2]
[329930521,1718842248700,-559.58,0.00013698,2]
[329930522,1718842248709,-703.46,0.00013698,2]
[329930523,1718842248718,-500.0,0.00013698,2]
[329930524,1718842248727,-500.0,0.00013698,2]
[329930525,1718842248736,-1942.14,0.00013698,2]
[329930526,1718842248745,-896.18,0.00013698,2]
[329930527,1718842248755,-1622.74,0.00013698,2]
[329930528,1718842248764,-500.0,0.00013698,2]
[329930529,1718842248773,-1149.96,0.00013698,2]
[329930530,1718842248783,-500.0,0.00013698,2]
[329930531,1718842248792,-500.0,0.00013698,2]
[329930532,1718842248801,-500.0,0.00013698,2]
[329930533,1718842248810,-500.0,0.00013698,2]
[329930534,1718842248820,-1081.27,0.00013698,2]
[329930535,1718842248830,-154.98636,0.00013698,2]
[329930536,1718842248839,-1129.54,0.00013698,2]
[329930537,1718842248849,-154.98636,0.00013698,2]
[329930538,1718842248858,-154.98636,0.00013698,2]
[329930539,1718842248867,-154.98636,0.00013698,2]
[329930540,1718842248877,-154.98636,0.00013698,2]
[329930541,1718842248886,-950.63,0.00013698,2]
[329930542,1718842248895,-154.98636,0.00013698,2]
[329930543,1718842248907,-154.98636,0.00013698,2]
[329930544,1718842248916,-500.0,0.00013698,2]
[329930545,1718842248926,-154.98636,0.00013698,2]
[329930546,1718842248935,-500.0,0.00013698,2]
[329930547,1718842248944,-154.98636,0.00013698,2]
[329930548,1718842248953,-154.98636,0.00013698,2]
[329930549,1718842248963,-154.98636,0.00013698,2]
[329930550,1718842248972,-154.98636,0.00013698,2]
[329930551,1718842248982,-154.98636,0.00013698,2]
[329930552,1718842248991,-500.0,0.00013698,2]